[Event "Titled Tuesday Blitz May 10 Late 2022"]
[White "Adewumi, Tanitoluwa"]
[Black "Hoffmann, Asa"]
[WhiteFideId "30966396"]
[BlackFideId "2001470"]
[WhiteElo "2499"]
[BlackElo "2117"]
[Result "1-0"]
[Round "07"]
[TimeControl "180+1"]
[Date "2022.05.11"]
[WhiteClock "0:00:05"]
[BlackClock "0:00:56"]

1. e4 {[%clk 0:03:00]}  d6 {[%clk 0:02:58]} 2. Nf3 {[%clk 0:03:00]}  Bg4 {[%clk 0:02:57]} 3. Bc4 {[%clk 0:02:58]}  e6 {[%clk 0:02:56]} 4. h3 {[%clk 0:02:58]}  Bh5 {[%clk 0:02:56]} 5. c3 {[%clk 0:02:56]}  Nf6 {[%clk 0:02:55]} 6. Qe2 {[%clk 0:02:48]}  c6 {[%clk 0:02:53]} 7. O-O {[%clk 0:02:43]}  Be7 {[%clk 0:02:53]} 8. d4 {[%clk 0:02:41]}  d5 {[%clk 0:02:53]} 9. exd5 {[%clk 0:02:37]}  cxd5 {[%clk 0:02:52]} 10. Bd3 {[%clk 0:02:36]}  Nc6 {[%clk 0:02:51]} 11. Bf4 {[%clk 0:02:35]}  O-O {[%clk 0:02:51]} 12. Nbd2 {[%clk 0:02:34]}  Bd6 {[%clk 0:02:50]} 13. Bxd6 {[%clk 0:02:25]}  Qxd6 {[%clk 0:02:49]} 14. Rae1 {[%clk 0:02:22]}  Rfe8 {[%clk 0:02:48]} 15. Qe3 {[%clk 0:02:13]}  Bg6 {[%clk 0:02:38]} 16. Bb5 {[%clk 0:02:08]}  Nd7 {[%clk 0:02:36]} 17. Ne5 {[%clk 0:02:00]}  Ndxe5 {[%clk 0:02:31]} 18. dxe5 {[%clk 0:01:46]}  Qc7 {[%clk 0:02:31]} 19. Nb3 {[%clk 0:01:40]}  Rac8 {[%clk 0:02:29]} 20. Bxc6 {[%clk 0:01:37]}  Qxc6 {[%clk 0:02:27]} 21. f4 {[%clk 0:01:28]}  Be4 {[%clk 0:02:25]} 22. Nd2 {[%clk 0:01:19]}  Bc2 {[%clk 0:02:09]} 23. a3 {[%clk 0:01:12]}  a6 {[%clk 0:02:05]} 24. Qd4 {[%clk 0:01:07]}  Qc5 {[%clk 0:02:04]} 25. Nf3 {[%clk 0:01:01]}  Be4 {[%clk 0:02:02]} 26. Qxc5 {[%clk 0:00:57]}  Rxc5 {[%clk 0:02:02]} 27. Nd4 {[%clk 0:00:58]}  g6 {[%clk 0:01:59]} 28. g4 {[%clk 0:00:53]}  b5 {[%clk 0:01:54]} 29. Nb3 {[%clk 0:00:41]}  Rc7 {[%clk 0:01:51]} 30. Re3 {[%clk 0:00:40]}  Ra8 {[%clk 0:01:48]} 31. Nd2 {[%clk 0:00:36]}  Bc2 {[%clk 0:01:44]} 32. Rc1 {[%clk 0:00:35]}  Be4 {[%clk 0:01:37]} 33. Nxe4 {[%clk 0:00:34]}  dxe4 {[%clk 0:01:37]} 34. Rd1 {[%clk 0:00:27]}  Rc4 {[%clk 0:01:33]} 35. Kf2 {[%clk 0:00:27]}  a5 {[%clk 0:01:33]} 36. b3 {[%clk 0:00:16]}  Rc7 {[%clk 0:01:29]} 37. Rd4 {[%clk 0:00:08]}  Rac8 {[%clk 0:01:29]} 38. Rdxe4 {[%clk 0:00:07]}  Rxc3 {[%clk 0:01:28]} 39. Rxc3 {[%clk 0:00:08]}  Rxc3 {[%clk 0:01:27]} 40. Re3 {[%clk 0:00:09]}  Rc2+ {[%clk 0:01:24]} 41. Re2 {[%clk 0:00:09]}  Rc5 {[%clk 0:01:22]} 42. Kf3 {[%clk 0:00:03]}  Kf8 {[%clk 0:01:22]} 43. Ke4 {[%clk 0:00:03]}  Ke7 {[%clk 0:01:21]} 44. Kd4 {[%clk 0:00:03]}  Rd5+ {[%clk 0:01:20]} 45. Kc3 {[%clk 0:00:03]}  Kd7 {[%clk 0:01:18]} 46. a4 {[%clk 0:00:03]}  bxa4 {[%clk 0:01:17]} 47. bxa4 {[%clk 0:00:04]}  Kc6 {[%clk 0:01:17]} 48. Kc4 {[%clk 0:00:05]}  Rc5+ {[%clk 0:01:16]} 49. Kd4 {[%clk 0:00:05]}  Rc1 {[%clk 0:01:15]} 50. Rd2 {[%clk 0:00:05]}  Rb1 {[%clk 0:01:14]} 51. Kc3 {[%clk 0:00:03]}  Rb4 {[%clk 0:01:13]} 52. Rd4 {[%clk 0:00:03]}  Rb1 {[%clk 0:01:10]} 53. Rd8 {[%clk 0:00:02]}  Rf1 {[%clk 0:01:08]} 54. Rd4 {[%clk 0:00:01]}  Rf3+ {[%clk 0:01:08]} 55. Kc4 {[%clk 0:00:01]}  Rxh3 {[%clk 0:01:07]} 56. Rd6+ {[%clk 0:00:02]}  Kc7 {[%clk 0:01:07]} 57. Kb5 {[%clk 0:00:02]}  Rf3 {[%clk 0:01:07]} 58. Rd4 {[%clk 0:00:02]}  h5 {[%clk 0:01:06]} 59. gxh5 {[%clk 0:00:02]}  gxh5 {[%clk 0:01:06]} 60. Kxa5 {[%clk 0:00:03]}  h4 {[%clk 0:01:06]} 61. Rc4+ {[%clk 0:00:01]}  Kd7 {[%clk 0:01:05]} 62. Kb6 {[%clk 0:00:02]}  h3 {[%clk 0:01:04]} 63. a5 {[%clk 0:00:02]}  h2 {[%clk 0:01:04]} 64. Rd4+ {[%clk 0:00:02]}  Ke7 {[%clk 0:01:04]} 65. Rd1 {[%clk 0:00:03]}  Rxf4 {[%clk 0:01:04]} 66. Ra1 {[%clk 0:00:03]}  Rh4 {[%clk 0:01:03]} 67. Rh1 {[%clk 0:00:02]}  f6 {[%clk 0:01:01]} 68. exf6+ {[%clk 0:00:02]}  Kxf6 {[%clk 0:01:01]} 69. a6 {[%clk 0:00:03]}  Rh8 {[%clk 0:01:01]} 70. a7 {[%clk 0:00:04]}  Kf5 {[%clk 0:01:01]} 71. Rxh2 {[%clk 0:00:03]}  Rxh2 {[%clk 0:00:58]} 72. a8=Q {[%clk 0:00:04]}  Rf2 {[%clk 0:00:56]} 73. Qf8+ {[%clk 0:00:04]}  Ke4 {[%clk 0:00:56]} 74. Qxf2 {[%clk 0:00:05]} 1-0


[Site "https://www.chess.com"]

[Event "Titled Tuesday Blitz May 10 Late 2022"]
[White "Akrakan"]
[Black "Gatterer, Florian"]
[BlackFideId "811688"]
[WhiteElo "2126"]
[BlackElo "2218"]
[Result "0-1"]
[Round "07"]
[TimeControl "180+1"]
[Date "2022.05.11"]
[WhiteClock "0:02:24"]
[BlackClock "0:01:18"]

1. e4 {[%clk 0:03:00]}  e5 {[%clk 0:02:50]} 2. Nf3 {[%clk 0:03:00]}  Nc6 {[%clk 0:02:50]} 3. Bc4 {[%clk 0:03:00]}  Bc5 {[%clk 0:02:49]} 4. O-O {[%clk 0:03:00]}  Nf6 {[%clk 0:02:49]} 5. b4 {[%clk 0:02:59]}  Bxb4 {[%clk 0:02:43]} 6. c3 {[%clk 0:02:59]}  Be7 {[%clk 0:02:36]} 7. d4 {[%clk 0:02:59]}  Na5 {[%clk 0:02:30]} 8. Bd3 {[%clk 0:02:56]}  exd4 {[%clk 0:02:30]} 9. cxd4 {[%clk 0:02:56]}  O-O {[%clk 0:02:27]} 10. Nc3 {[%clk 0:02:51]}  d5 {[%clk 0:02:18]} 11. e5 {[%clk 0:02:50]}  Ne4 {[%clk 0:02:18]} 12. Nxe4 {[%clk 0:02:49]}  dxe4 {[%clk 0:02:18]} 13. Bxe4 {[%clk 0:02:50]}  c5 {[%clk 0:02:13]} 14. d5 {[%clk 0:02:47]}  f5 {[%clk 0:02:10]} 15. Bc2 {[%clk 0:02:42]}  Re8 {[%clk 0:01:49]} 16. d6 {[%clk 0:02:38]}  Bf8 {[%clk 0:01:48]} 17. Qd5+ {[%clk 0:02:38]}  Be6 {[%clk 0:01:45]} 18. Qxc5 {[%clk 0:02:38]}  Rc8 {[%clk 0:01:43]} 19. Qxa7 {[%clk 0:02:38]}  Rxc2 {[%clk 0:01:39]} 20. Be3 {[%clk 0:02:36]}  Nc4 {[%clk 0:01:32]} 21. Bd4 {[%clk 0:02:30]}  Nd2 {[%clk 0:01:19]} 22. Rfc1 {[%clk 0:02:25]}  Nxf3+ {[%clk 0:01:18]} 23. gxf3 {[%clk 0:02:24]}  Rxc1+ {[%clk 0:01:18]} 24. Rxc1 {[%clk 0:02:24]}  Qg5+ {[%clk 0:01:18]} 0-1


[Site "https://www.chess.com"]

[Event "Titled Tuesday Blitz May 10 Late 2022"]
[White "Aksu, Vedat Ali"]
[Black "Rosenberg, Evan S"]
[WhiteFideId "6304320"]
[BlackFideId "2019299"]
[WhiteElo "2198"]
[BlackElo "2373"]
[Result "0-1"]
[Round "07"]
[TimeControl "180+1"]
[Date "2022.05.11"]
[WhiteClock "0:00:11"]
[BlackClock "0:00:42"]

1. Nf3 {[%clk 0:03:00]}  d5 {[%clk 0:02:59]} 2. e3 {[%clk 0:03:00]}  c5 {[%clk 0:02:57]} 3. c4 {[%clk 0:03:00]}  Nf6 {[%clk 0:02:50]} 4. cxd5 {[%clk 0:02:58]}  Nxd5 {[%clk 0:02:50]} 5. Nc3 {[%clk 0:02:59]}  a6 {[%clk 0:02:49]} 6. a3 {[%clk 0:02:57]}  e6 {[%clk 0:02:41]} 7. Qc2 {[%clk 0:02:56]}  b6 {[%clk 0:02:39]} 8. b3 {[%clk 0:02:55]}  Bb7 {[%clk 0:02:39]} 9. Bb2 {[%clk 0:02:55]}  Nd7 {[%clk 0:02:35]} 10. Be2 {[%clk 0:02:54]}  N7f6 {[%clk 0:02:35]} 11. Rg1 {[%clk 0:02:38]}  Be7 {[%clk 0:02:32]} 12. g4 {[%clk 0:02:38]}  h6 {[%clk 0:02:31]} 13. h4 {[%clk 0:02:37]}  Nxc3 {[%clk 0:02:29]} 14. Bxc3 {[%clk 0:02:37]}  Be4 {[%clk 0:02:27]} 15. Qb2 {[%clk 0:02:17]}  Qd5 {[%clk 0:02:19]} 16. Ne5 {[%clk 0:02:10]}  Qb7 {[%clk 0:02:03]} 17. f3 {[%clk 0:02:03]}  Bd5 {[%clk 0:02:01]} 18. g5 {[%clk 0:02:02]}  hxg5 {[%clk 0:02:01]} 19. hxg5 {[%clk 0:02:02]}  Nh5 {[%clk 0:01:54]} 20. g6 {[%clk 0:01:44]}  Bh4+ {[%clk 0:01:47]} 21. Kd1 {[%clk 0:01:43]}  f6 {[%clk 0:01:43]} 22. Nf7 {[%clk 0:01:36]}  Ke7 {[%clk 0:01:40]} 23. Nxh8 {[%clk 0:01:03]}  Rxh8 {[%clk 0:01:41]} 24. e4 {[%clk 0:00:57]}  Bc6 {[%clk 0:01:41]} 25. b4 {[%clk 0:00:56]}  Nf4 {[%clk 0:01:08]} 26. bxc5 {[%clk 0:00:44]}  b5 {[%clk 0:01:06]} 27. Rg4 {[%clk 0:00:36]}  Bg5 {[%clk 0:01:00]} 28. Rxg5 {[%clk 0:00:29]}  Rh1+ {[%clk 0:00:51]} 29. Kc2 {[%clk 0:00:25]}  Rxa1 {[%clk 0:00:50]} 30. Qxa1 {[%clk 0:00:21]}  Nxe2 {[%clk 0:00:42]} 31. Bxf6+ {[%clk 0:00:12]}  gxf6 {[%clk 0:00:43]} 32. g7 {[%clk 0:00:11]}  Bxe4+ {[%clk 0:00:42]} 0-1


[Site "https://www.chess.com"]

[Event "Titled Tuesday Blitz May 10 Late 2022"]
[White "Alexiadis, Hristos"]
[Black "Ferreira, Vitor Hugo Vieira"]
[WhiteFideId "4249623"]
[BlackFideId "2119765"]
[WhiteElo "2416"]
[BlackElo "2165"]
[Result "1-0"]
[Round "07"]
[TimeControl "180+1"]
[Date "2022.05.11"]
[WhiteClock "0:02:03"]
[BlackClock "0:01:34"]

1. e4 {[%clk 0:03:00]}  c5 {[%clk 0:02:59]} 2. Nf3 {[%clk 0:03:01]}  d6 {[%clk 0:03:00]} 3. Bb5+ {[%clk 0:03:00]}  Bd7 {[%clk 0:02:57]} 4. Bxd7+ {[%clk 0:03:00]}  Qxd7 {[%clk 0:02:58]} 5. O-O {[%clk 0:03:00]}  Nf6 {[%clk 0:02:56]} 6. Qe2 {[%clk 0:03:01]}  Nc6 {[%clk 0:02:55]} 7. Rd1 {[%clk 0:03:01]}  e5 {[%clk 0:02:55]} 8. c3 {[%clk 0:03:01]}  Be7 {[%clk 0:02:52]} 9. d4 {[%clk 0:03:01]}  exd4 {[%clk 0:02:46]} 10. cxd4 {[%clk 0:03:02]}  cxd4 {[%clk 0:02:47]} 11. Nxd4 {[%clk 0:03:02]}  Nxd4 {[%clk 0:02:47]} 12. Rxd4 {[%clk 0:03:03]}  Rc8 {[%clk 0:02:43]} 13. Nc3 {[%clk 0:02:59]}  Qc6 {[%clk 0:02:37]} 14. Bf4 {[%clk 0:02:58]}  O-O {[%clk 0:02:37]} 15. Rad1 {[%clk 0:02:58]}  Rfd8 {[%clk 0:02:36]} 16. Qf3 {[%clk 0:02:54]}  a6 {[%clk 0:02:35]} 17. h3 {[%clk 0:02:52]}  h6 {[%clk 0:02:33]} 18. R4d3 {[%clk 0:02:44]}  b5 {[%clk 0:02:09]} 19. Re1 {[%clk 0:02:42]}  Re8 {[%clk 0:02:02]} 20. Rde3 {[%clk 0:02:38]}  Nd7 {[%clk 0:01:59]} 21. Nd5 {[%clk 0:02:36]}  Ne5 {[%clk 0:01:59]} 22. Bxe5 {[%clk 0:02:31]}  dxe5 {[%clk 0:01:57]} 23. Rc3 {[%clk 0:02:29]}  Qb7 {[%clk 0:01:40]} 24. Rec1 {[%clk 0:02:24]}  Bd6 {[%clk 0:01:34]} 25. Nf6+ {[%clk 0:02:03]} 1-0


[Site "https://www.chess.com"]

[Event "Titled Tuesday Blitz May 10 Late 2022"]
[White "Al-Tarboush, Ward"]
[Black "Petrovskyi, Vadym"]
[WhiteFideId "7601450"]
[BlackFideId "14165210"]
[WhiteElo "2294"]
[BlackElo "2400"]
[Result "0-1"]
[Round "07"]
[TimeControl "180+1"]
[Date "2022.05.10"]
[WhiteClock "0:00:52"]
[BlackClock "0:02:15"]

1. e4 {[%clk 0:03:00]}  c5 {[%clk 0:02:57]} 2. Nf3 {[%clk 0:03:01]}  d6 {[%clk 0:02:56]} 3. d4 {[%clk 0:03:01]}  cxd4 {[%clk 0:02:57]} 4. Nxd4 {[%clk 0:03:02]}  Nf6 {[%clk 0:02:57]} 5. Nc3 {[%clk 0:03:02]}  a6 {[%clk 0:02:57]} 6. h3 {[%clk 0:03:03]}  e5 {[%clk 0:02:57]} 7. Nde2 {[%clk 0:03:03]}  h5 {[%clk 0:02:58]} 8. Bg5 {[%clk 0:03:03]}  Be6 {[%clk 0:02:58]} 9. g3 {[%clk 0:03:03]}  Nbd7 {[%clk 0:02:58]} 10. Bg2 {[%clk 0:03:03]}  Be7 {[%clk 0:02:58]} 11. a4 {[%clk 0:03:03]}  Rc8 {[%clk 0:02:58]} 12. O-O {[%clk 0:03:00]}  Nb6 {[%clk 0:02:51]} 13. b3 {[%clk 0:02:57]}  d5 {[%clk 0:02:51]} 14. a5 {[%clk 0:02:55]}  d4 {[%clk 0:02:51]} 15. axb6 {[%clk 0:02:42]}  dxc3 {[%clk 0:02:51]} 16. Be3 {[%clk 0:02:25]}  Qd7 {[%clk 0:02:48]} 17. f4 {[%clk 0:02:19]}  Bxh3 {[%clk 0:02:35]} 18. Qxd7+ {[%clk 0:02:14]}  Bxd7 {[%clk 0:02:34]} 19. fxe5 {[%clk 0:02:14]}  Ng4 {[%clk 0:02:34]} 20. Bd4 {[%clk 0:02:08]}  Bb5 {[%clk 0:02:30]} 21. Rfe1 {[%clk 0:02:01]}  Rd8 {[%clk 0:02:24]} 22. Bf2 {[%clk 0:01:05]}  Nxf2 {[%clk 0:02:15]} 23. Kxf2 {[%clk 0:01:06]}  Bc5+ {[%clk 0:02:15]} 24. Kf3 {[%clk 0:01:03]}  Rd2 {[%clk 0:02:15]} 25. Rad1 {[%clk 0:00:52]}  Bxe2+ {[%clk 0:02:15]} 0-1


[Site "https://www.chess.com"]

[Event "Titled Tuesday Blitz May 10 Late 2022"]
[White "Antonova, Nadezhda"]
[Black "Wachinger, Guenther"]
[WhiteFideId "14700182"]
[BlackFideId "4604261"]
[WhiteElo "1743"]
[BlackElo "2212"]
[Result "0-1"]
[Round "07"]
[TimeControl "180+1"]
[Date "2022.05.11"]
[WhiteClock "0:00:01"]
[BlackClock "0:00:16"]

1. d4 {[%clk 0:02:59]}  Nf6 {[%clk 0:02:30]} 2. Nf3 {[%clk 0:02:58]}  c5 {[%clk 0:02:23]} 3. e3 {[%clk 0:02:57]}  b6 {[%clk 0:02:19]} 4. Nbd2 {[%clk 0:02:55]}  Bb7 {[%clk 0:02:18]} 5. Bd3 {[%clk 0:02:56]}  e6 {[%clk 0:02:18]} 6. c3 {[%clk 0:02:56]}  Be7 {[%clk 0:02:18]} 7. e4 {[%clk 0:02:55]}  O-O {[%clk 0:02:17]} 8. O-O {[%clk 0:02:56]}  d6 {[%clk 0:02:16]} 9. Re1 {[%clk 0:02:55]}  Nbd7 {[%clk 0:02:16]} 10. Qe2 {[%clk 0:02:55]}  e5 {[%clk 0:02:16]} 11. d5 {[%clk 0:02:54]}  Ne8 {[%clk 0:02:15]} 12. a4 {[%clk 0:02:49]}  g6 {[%clk 0:02:13]} 13. a5 {[%clk 0:02:40]}  a6 {[%clk 0:02:10]} 14. axb6 {[%clk 0:02:40]}  Qxb6 {[%clk 0:02:06]} 15. Nc4 {[%clk 0:02:39]}  Qc7 {[%clk 0:02:00]} 16. Na5 {[%clk 0:02:37]}  f5 {[%clk 0:01:54]} 17. Ng5 {[%clk 0:02:34]}  Ng7 {[%clk 0:01:53]} 18. Nxb7 {[%clk 0:02:29]}  Qxb7 {[%clk 0:01:49]} 19. Ne6 {[%clk 0:02:29]}  Nxe6 {[%clk 0:01:48]} 20. dxe6 {[%clk 0:02:29]}  Nb8 {[%clk 0:01:47]} 21. Bh6 {[%clk 0:02:24]}  Re8 {[%clk 0:01:41]} 22. exf5 {[%clk 0:02:24]}  gxf5 {[%clk 0:01:39]} 23. Bxf5 {[%clk 0:02:24]}  Bf6 {[%clk 0:01:38]} 24. Qg4+ {[%clk 0:02:22]}  Kh8 {[%clk 0:01:38]} 25. Qh5 {[%clk 0:02:15]}  Rg8 {[%clk 0:01:38]} 26. Be4 {[%clk 0:01:58]}  d5 {[%clk 0:01:30]} 27. Qf5 {[%clk 0:01:44]}  Rg6 {[%clk 0:01:20]} 28. e7 {[%clk 0:01:23]}  Nd7 {[%clk 0:01:01]} 29. Bf3 {[%clk 0:00:19]}  Rxh6 {[%clk 0:01:00]} 30. Rad1 {[%clk 0:00:14]}  Nb6 {[%clk 0:00:55]} 31. Qe6 {[%clk 0:00:11]}  Qxe7 {[%clk 0:00:52]} 32. Bxd5 {[%clk 0:00:10]}  Nxd5 {[%clk 0:00:45]} 33. Qxd5 {[%clk 0:00:09]}  Rd8 {[%clk 0:00:45]} 34. Qc4 {[%clk 0:00:06]}  Rg6 {[%clk 0:00:40]} 35. Rxd8+ {[%clk 0:00:05]}  Qxd8 {[%clk 0:00:41]} 36. Qxa6 {[%clk 0:00:04]}  Qd2 {[%clk 0:00:37]} 37. Rf1 {[%clk 0:00:04]}  e4 {[%clk 0:00:36]} 38. Qc8+ {[%clk 0:00:04]}  Kg7 {[%clk 0:00:35]} 39. Qe8 {[%clk 0:00:04]}  Qxb2 {[%clk 0:00:28]} 40. c4 {[%clk 0:00:04]}  Qd4 {[%clk 0:00:25]} 41. g3 {[%clk 0:00:03]}  Qxc4 {[%clk 0:00:24]} 42. Re1 {[%clk 0:00:02]}  Qf7 {[%clk 0:00:20]} 43. Qxe4 {[%clk 0:00:03]}  Bd4 {[%clk 0:00:20]} 44. Qc2 {[%clk 0:00:02]}  Rf6 {[%clk 0:00:19]} 45. Re2 {[%clk 0:00:02]}  Rf3 {[%clk 0:00:17]} 46. Kg2 {[%clk 0:00:02]}  h5 {[%clk 0:00:18]} 47. h4 {[%clk 0:00:02]}  Qf6 {[%clk 0:00:17]} 48. Qc4 {[%clk 0:00:01]}  Rxf2+ {[%clk 0:00:16]} 49. Kh3 {[%clk 0:00:01]}  Qf5+ {[%clk 0:00:16]} 0-1


[Site "https://www.chess.com"]

[Event "Titled Tuesday Blitz May 10 Late 2022"]
[White "Arabidze, Meri"]
[Black "Zhou, Qiyu"]
[WhiteFideId "13604040"]
[BlackFideId "505161"]
[WhiteElo "2335"]
[BlackElo "1925"]
[Result "0-1"]
[Round "07"]
[TimeControl "180+1"]
[Date "2022.05.11"]
[WhiteClock "0:00:04"]
[BlackClock "0:00:05"]

1. Nf3 {[%clk 0:03:00]}  Nf6 {[%clk 0:02:59]} 2. g3 {[%clk 0:03:01]}  d5 {[%clk 0:02:59]} 3. Bg2 {[%clk 0:03:01]}  g6 {[%clk 0:02:59]} 4. O-O {[%clk 0:03:00]}  Bg7 {[%clk 0:03:00]} 5. d3 {[%clk 0:03:01]}  O-O {[%clk 0:03:00]} 6. Nbd2 {[%clk 0:03:01]}  c5 {[%clk 0:03:01]} 7. c4 {[%clk 0:03:00]}  e6 {[%clk 0:03:01]} 8. Rb1 {[%clk 0:02:57]}  a5 {[%clk 0:03:00]} 9. b3 {[%clk 0:02:54]}  Nc6 {[%clk 0:03:00]} 10. Bb2 {[%clk 0:02:53]}  d4 {[%clk 0:03:00]} 11. a3 {[%clk 0:02:50]}  e5 {[%clk 0:02:57]} 12. Ng5 {[%clk 0:02:47]}  Re8 {[%clk 0:02:55]} 13. Qc2 {[%clk 0:02:42]}  Qc7 {[%clk 0:02:48]} 14. Rbe1 {[%clk 0:02:37]}  b6 {[%clk 0:02:40]} 15. e3 {[%clk 0:02:36]}  Bb7 {[%clk 0:02:39]} 16. exd4 {[%clk 0:02:35]}  exd4 {[%clk 0:02:40]} 17. Bc1 {[%clk 0:02:30]}  Ne5 {[%clk 0:02:34]} 18. Nde4 {[%clk 0:02:23]}  Nxe4 {[%clk 0:02:28]} 19. dxe4 {[%clk 0:02:14]}  h6 {[%clk 0:02:09]} 20. Nh3 {[%clk 0:02:14]}  a4 {[%clk 0:01:45]} 21. f4 {[%clk 0:02:14]}  Nd7 {[%clk 0:01:41]} 22. Nf2 {[%clk 0:01:53]}  axb3 {[%clk 0:01:34]} 23. Qxb3 {[%clk 0:01:54]}  Bc6 {[%clk 0:01:34]} 24. e5 {[%clk 0:01:49]}  Bxg2 {[%clk 0:01:30]} 25. Kxg2 {[%clk 0:01:50]}  Qc6+ {[%clk 0:01:30]} 26. Qf3 {[%clk 0:01:49]}  Qxf3+ {[%clk 0:01:16]} 27. Kxf3 {[%clk 0:01:50]}  Ra4 {[%clk 0:01:16]} 28. Ne4 {[%clk 0:01:49]}  Rxc4 {[%clk 0:01:10]} 29. Bd2 {[%clk 0:01:30]}  Ra8 {[%clk 0:01:06]} 30. Nd6 {[%clk 0:01:24]}  Rxa3+ {[%clk 0:01:05]} 31. Ke4 {[%clk 0:01:22]}  Rc2 {[%clk 0:01:01]} 32. Rd1 {[%clk 0:01:17]}  Raa2 {[%clk 0:00:52]} 33. Be1 {[%clk 0:01:03]}  Rxh2 {[%clk 0:00:45]} 34. Kd5 {[%clk 0:01:03]}  Nf8 {[%clk 0:00:33]} 35. Kc6 {[%clk 0:01:00]}  Rhb2 {[%clk 0:00:22]} 36. Nc4 {[%clk 0:00:56]}  Rb3 {[%clk 0:00:19]} 37. g4 {[%clk 0:00:52]}  b5 {[%clk 0:00:16]} 38. Nd6 {[%clk 0:00:46]}  c4 {[%clk 0:00:14]} 39. Rxd4 {[%clk 0:00:40]}  Ne6 {[%clk 0:00:13]} 40. Rd5 {[%clk 0:00:39]}  Ra6+ {[%clk 0:00:11]} 41. Kb7 {[%clk 0:00:37]}  Ra2 {[%clk 0:00:08]} 42. f5 {[%clk 0:00:37]}  gxf5 {[%clk 0:00:07]} 43. gxf5 {[%clk 0:00:38]}  Ng5 {[%clk 0:00:06]} 44. f6 {[%clk 0:00:28]}  Bf8 {[%clk 0:00:06]} 45. Nxb5 {[%clk 0:00:24]}  Rab2 {[%clk 0:00:06]} 46. Kc6 {[%clk 0:00:23]}  c3 {[%clk 0:00:06]} 47. Bxc3 {[%clk 0:00:19]}  Rc2 {[%clk 0:00:04]} 48. Rd3 {[%clk 0:00:11]}  Bb4 {[%clk 0:00:04]} 49. Rd8+ {[%clk 0:00:08]}  Kh7 {[%clk 0:00:04]} 50. e6 {[%clk 0:00:07]}  Nxe6 {[%clk 0:00:04]} 51. Rd7 {[%clk 0:00:04]}  Ng5 {[%clk 0:00:04]} 52. Rf5 {[%clk 0:00:03]}  Bxc3 {[%clk 0:00:04]} 53. Rc5 {[%clk 0:00:03]}  Rc1 {[%clk 0:00:02]} 54. Nxc3 {[%clk 0:00:02]}  Rbxc3 {[%clk 0:00:03]} 55. Rxc3 {[%clk 0:00:01]}  Rxc3+ {[%clk 0:00:03]} 56. Kb7 {[%clk 0:00:02]}  Rf3 {[%clk 0:00:04]} 57. Kc8 {[%clk 0:00:02]}  Rxf6 {[%clk 0:00:04]} 58. Kd8 {[%clk 0:00:03]}  Kg6 {[%clk 0:00:05]} 59. Ke8 {[%clk 0:00:03]}  h5 {[%clk 0:00:06]} 60. Kf8 {[%clk 0:00:04]}  h4 {[%clk 0:00:07]} 61. Kg8 {[%clk 0:00:05]}  h3 {[%clk 0:00:07]} 62. Rd2 {[%clk 0:00:05]}  Rf3 {[%clk 0:00:07]} 63. Rh2 {[%clk 0:00:04]}  Rg3 {[%clk 0:00:07]} 64. Rf2 {[%clk 0:00:03]}  Rg2 {[%clk 0:00:07]} 65. Rf4 {[%clk 0:00:03]}  Kh5 {[%clk 0:00:05]} 66. Rf6 {[%clk 0:00:03]}  h2 {[%clk 0:00:06]} 67. Kg7 {[%clk 0:00:04]}  Kg4 {[%clk 0:00:05]} 68. Rh6 {[%clk 0:00:04]}  f5 {[%clk 0:00:05]} 0-1


[Site "https://www.chess.com"]

[Event "Titled Tuesday Blitz May 10 Late 2022"]
[White "Bas Mas, Jose Joaquin"]
[Black "Ardila, Oscar Humberto"]
[WhiteFideId "22219064"]
[BlackFideId "4404742"]
[WhiteElo "2233"]
[BlackElo "1928"]
[Result "1-0"]
[Round "07"]
[TimeControl "180+1"]
[Date "2022.05.11"]
[WhiteClock "0:01:34"]
[BlackClock "0:00:11"]

1. Nf3 {[%clk 0:03:00]}  Nf6 {[%clk 0:03:00]} 2. e3 {[%clk 0:03:00]}  g6 {[%clk 0:03:00]} 3. b3 {[%clk 0:03:00]}  Bg7 {[%clk 0:03:00]} 4. Bb2 {[%clk 0:03:01]}  O-O {[%clk 0:03:01]} 5. Be2 {[%clk 0:03:01]}  d6 {[%clk 0:03:01]} 6. O-O {[%clk 0:03:02]}  Nbd7 {[%clk 0:03:02]} 7. d4 {[%clk 0:03:02]}  c6 {[%clk 0:03:01]} 8. c4 {[%clk 0:03:02]}  Qc7 {[%clk 0:03:01]} 9. Nbd2 {[%clk 0:03:02]}  e5 {[%clk 0:03:02]} 10. Qc2 {[%clk 0:03:01]}  Re8 {[%clk 0:03:01]} 11. Rac1 {[%clk 0:02:56]}  exd4 {[%clk 0:03:01]} 12. Nxd4 {[%clk 0:02:54]}  Nc5 {[%clk 0:03:01]} 13. Rfe1 {[%clk 0:02:51]}  Nce4 {[%clk 0:03:00]} 14. N2f3 {[%clk 0:02:50]}  a6 {[%clk 0:02:57]} 15. Qb1 {[%clk 0:02:47]}  c5 {[%clk 0:02:57]} 16. Nc2 {[%clk 0:02:45]}  Bf5 {[%clk 0:02:56]} 17. Qa1 {[%clk 0:02:45]}  Nh5 {[%clk 0:02:54]} 18. Bxg7 {[%clk 0:02:44]}  Nxg7 {[%clk 0:02:54]} 19. Nh4 {[%clk 0:02:37]}  Bd7 {[%clk 0:02:48]} 20. f3 {[%clk 0:02:37]}  Ng5 {[%clk 0:02:45]} 21. e4 {[%clk 0:02:36]}  Qd8 {[%clk 0:02:39]} 22. g3 {[%clk 0:02:34]}  N5e6 {[%clk 0:02:34]} 23. Ng2 {[%clk 0:02:32]}  f5 {[%clk 0:02:31]} 24. Rcd1 {[%clk 0:02:32]}  fxe4 {[%clk 0:02:30]} 25. fxe4 {[%clk 0:02:32]}  Qe7 {[%clk 0:02:26]} 26. Nge3 {[%clk 0:02:29]}  Bc6 {[%clk 0:02:17]} 27. Nd5 {[%clk 0:02:29]}  Bxd5 {[%clk 0:02:17]} 28. exd5 {[%clk 0:02:30]}  Ng5 {[%clk 0:02:14]} 29. Bg4 {[%clk 0:02:28]}  Qf7 {[%clk 0:02:08]} 30. Rf1 {[%clk 0:02:26]}  Qc7 {[%clk 0:01:53]} 31. Qc3 {[%clk 0:02:25]}  Ne4 {[%clk 0:01:49]} 32. Qd3 {[%clk 0:02:24]}  h5 {[%clk 0:01:34]} 33. Bh3 {[%clk 0:02:22]}  Re5 {[%clk 0:01:24]} 34. Rde1 {[%clk 0:02:20]}  Rae8 {[%clk 0:01:24]} 35. Bg2 {[%clk 0:02:20]}  Qe7 {[%clk 0:01:17]} 36. Bxe4 {[%clk 0:02:03]}  Rxe4 {[%clk 0:01:17]} 37. Rxe4 {[%clk 0:02:04]}  Qxe4 {[%clk 0:01:17]} 38. Qxe4 {[%clk 0:02:04]}  Rxe4 {[%clk 0:01:17]} 39. Kf2 {[%clk 0:02:04]}  Nf5 {[%clk 0:01:16]} 40. Kf3 {[%clk 0:02:02]}  Re7 {[%clk 0:01:09]} 41. Rf2 {[%clk 0:02:01]}  Kg7 {[%clk 0:00:58]} 42. Re2 {[%clk 0:02:01]}  Rxe2 {[%clk 0:00:49]} 43. Kxe2 {[%clk 0:02:02]}  Kf6 {[%clk 0:00:49]} 44. Kf3 {[%clk 0:02:00]}  Ke5 {[%clk 0:00:49]} 45. g4 {[%clk 0:01:57]}  hxg4+ {[%clk 0:00:20]} 46. Kxg4 {[%clk 0:01:57]}  Ke4 {[%clk 0:00:21]} 47. Kg5 {[%clk 0:01:56]}  Kd3 {[%clk 0:00:20]} 48. Kxg6 {[%clk 0:01:53]}  Nh4+ {[%clk 0:00:20]} 49. Kf6 {[%clk 0:01:42]}  Kxc2 {[%clk 0:00:19]} 50. Ke6 {[%clk 0:01:42]}  b5 {[%clk 0:00:16]} 51. Kxd6 {[%clk 0:01:41]}  bxc4 {[%clk 0:00:17]} 52. bxc4 {[%clk 0:01:41]}  Kd3 {[%clk 0:00:17]} 53. Kxc5 {[%clk 0:01:41]}  Nf5 {[%clk 0:00:17]} 54. d6 {[%clk 0:01:40]}  a5 {[%clk 0:00:17]} 55. d7 {[%clk 0:01:40]}  Nd4 {[%clk 0:00:14]} 56. Kd5 {[%clk 0:01:35]}  Nc2 {[%clk 0:00:10]} 57. d8=Q {[%clk 0:01:34]}  Nb4+ {[%clk 0:00:11]} 58. Kc5+ {[%clk 0:01:34]}  Kc3 {[%clk 0:00:11]} 59. Qxa5 {[%clk 0:01:34]} 1-0


[Site "https://www.chess.com"]